fUST/lending_fUST_20250427
["ID","MTS","AMOUNT","RATE_DAILY","PERIOD"]
[359165778,1745760642749,-500.0,0.00016438,2]
[359165780,1745760642758,-500.0,0.00016438,2]
[359165782,1745760642767,-151.0,0.00016438,2]
[359165784,1745760642776,-151.0,0.00016438,2]
[359165786,1745760642785,-151.0,0.00016438,2]
[359165788,1745760642794,-151.0,0.00016438,2]
[359165790,1745760642803,-151.0,0.00016438,2]
[359165792,1745760642813,-162.584358,0.00016438,2]
[359165794,1745760642822,-500.0,0.00016438,2]
[359165796,1745760642831,-516.07,0.00016438,2]
[359165798,1745760642840,-500.0,0.00016438,2]
[359165800,1745760642850,-500.0,0.00016438,2]
[359165802,1745760642859,-500.0,0.00016438,2]
[359165804,1745760642868,-151.0,0.00016438,2]
[359165806,1745760642877,-151.0,0.00016438,2]
[359165808,1745760642887,-151.0,0.00016438,2]
[359165810,1745760642898,-151.0,0.00016438,2]
[359165812,1745760642907,-151.0,0.00016438,2]
[359165814,1745760642916,-500.0,0.00016438,2]
[359165816,1745760642925,-500.0,0.00016438,2]
[359165818,1745760642935,-500.0,0.00016438,2]
[359165820,1745760642944,-479.72210351,0.00016438,2]
[359165822,1745760642952,-151.0,0.00016438,2]
[359165824,1745760642961,-151.0,0.00016438,2]
[359165826,1745760642970,-151.0,0.00016438,2]
[359165828,1745760642979,-151.0,0.00016438,2]
[359165830,1745760642989,-500.0,0.00016438,2]
[359165832,1745760642998,-500.0,0.00016438,2]
[359165834,1745760643007,-151.0,0.00016438,2]
[359165836,1745760643016,-151.0,0.00016438,2]
[359165839,1745760643025,-500.0,0.00016438,2]
[359165842,1745760643034,-175.077027,0.00016438,2]
[359165844,1745760643043,-500.0,0.00016438,2]
[359165846,1745760643052,-500.0,0.00016438,2]
[359165848,1745760643061,-500.0,0.00016438,2]
[359165850,1745760643070,-500.0,0.00016438,2]
[359165852,1745760643078,-500.0,0.00016438,2]
[359165854,1745760643087,-500.0,0.00016438,2]
[359165856,1745760643096,-500.0,0.00016438,2]
[359165858,1745760643105,-500.0,0.00016438,2]
[359165860,1745760643114,-500.0,0.00016438,2]
[359165861,1745760643123,-500.0,0.00016438,2]
[359165864,1745760643132,-500.0,0.00016438,2]
[359165866,1745760643141,-151.0,0.00016438,2]
[359165868,1745760643150,-151.0,0.00016438,2]
[359165869,1745760643160,-151.0,0.00016438,2]
[359165870,1745760643169,-500.0,0.00016438,2]
[359165872,1745760643178,-151.0,0.00016438,2]
[359165874,1745760643187,-151.0,0.00016438,2]
[359165875,1745760643196,-500.0,0.00016438,2]
[359165876,1745760643205,-500.0,0.00016438,2]
[359165877,1745760643214,-500.0,0.00016438,2]
[359165878,1745760643223,-500.0,0.00016438,2]
[359165879,1745760643232,-400.0,0.00016438,2]
[359165880,1745760643242,-506.15363087,0.00016438,2]
[359165881,1745760643251,-1000.0,0.00016438,2]
[359165882,1745760643260,-501.77666421,0.00016438,2]
[359165883,1745760643270,-514.08857837,0.00016438,2]
[359165884,1745760643280,-500.0,0.00016438,2]
[359165885,1745760643289,-500.0,0.00016438,2]
[359165886,1745760643299,-500.0,0.00016438,2]
[359165887,1745760643309,-500.0,0.00016438,2]
[359165888,1745760643319,-151.0,0.00016438,2]
[359165889,1745760643330,-151.0,0.00016438,2]
[359165890,1745760643344,-151.0,0.00016438,2]
[359165891,1745760643354,-151.0,0.00016438,2]
[359165892,1745760643364,-500.76749215,0.00016438,2]
[359165893,1745760643374,-151.0,0.00016438,2]
[359165894,1745760643385,-151.0,0.00016438,2]
[359165895,1745760643395,-151.0,0.00016438,2]
[359165896,1745760643405,-164.545017,0.00016438,2]
[359165897,1745760643414,-500.0,0.00016438,2]
[359165898,1745760643425,-500.0,0.00016438,2]
[359165899,1745760643435,-500.0,0.00016438,2]
[359165900,1745760643445,-501.03825965,0.00016438,2]
[359165901,1745760643454,-500.73751405,0.00016438,2]
[359165902,1745760643463,-500.0,0.00016438,2]
[359165903,1745760643473,-511.45804989,0.00016438,2]
[359165904,1745760643482,-500.0,0.00016438,2]
[359165905,1745760643492,-500.0,0.00016438,2]
[359165906,1745760643501,-151.0,0.00016438,2]
[359165907,1745760643511,-151.0,0.00016438,2]
[359165908,1745760643520,-151.0,0.00016438,2]
[359165909,1745760643530,-500.0,0.00016438,2]
[359165910,1745760643539,-151.0,0.00016438,2]
[359165911,1745760643549,-151.0,0.00016438,2]
[359165912,1745760643558,-232.928958,0.00016438,2]
[359165913,1745760643567,-500.0,0.00016438,2]
[359165914,1745760643577,-151.0,0.00016438,2]
[359165915,1745760643586,-151.0,0.00016438,2]
[359165916,1745760643596,-500.0,0.00016438,2]
[359165917,1745760643605,-151.0,0.00016438,2]
[359165918,1745760643614,-400.0,0.00016438,2]
[359165919,1745760643623,-500.0,0.00016438,2]
[359165920,1745760643632,-500.0,0.00016438,2]
[359165921,1745760643642,-500.0,0.00016438,2]
[359165922,1745760643653,-500.0,0.00016438,2]
[359165923,1745760643662,-500.0,0.00016438,2]
[359165924,1745760643672,-500.0,0.00016438,2]
[359165925,1745760643681,-500.0,0.00016438,2]
[359165926,1745760643690,-500.0,0.00016438,2]
[359165927,1745760643699,-500.0,0.00016438,2]
[359165928,1745760643709,-544.00097968,0.00016438,2]
[359165929,1745760643718,-500.0,0.00016438,2]
[359165930,1745760643727,-152.575771,0.00016438,2]
[359165931,1745760643736,-3604.27,0.00016438,2]
[359165932,1745760643746,-3604.27,0.00016438,2]
[359165933,1745760643755,-3604.27,0.00016438,2]
[359165934,1745760643764,-3604.27,0.00016438,2]
[359165935,1745760643774,-500.0,0.00016438,2]
[359165936,1745760643783,-3604.27,0.00016438,2]
[359165937,1745760643792,-3604.27,0.00016438,2]
[359165938,1745760643801,-3604.27,0.00016438,2]
[359165939,1745760643811,-3604.27,0.00016438,2]
[359165940,1745760643820,-3604.27,0.00016438,2]
[359165941,1745760643829,-3604.27,0.00016438,2]
[359165942,1745760643838,-3604.27,0.00016438,2]
[359165943,1745760643847,-500.0,0.00016438,2]
[359165944,1745760643856,-3604.27,0.00016438,2]
[359165945,1745760643865,-3604.27,0.00016438,2]
[359165946,1745760643875,-3604.27,0.00016438,2]
[359165947,1745760643883,-500.0,0.00016438,2]
[359165948,1745760643893,-500.0,0.00016438,2]
[359165949,1745760643902,-500.0,0.00016438,2]
[359165950,1745760643911,-500.0,0.00016438,2]
[359165951,1745760643920,-500.0,0.00016438,2]
[359165952,1745760643930,-500.0,0.00016438,2]
[359165953,1745760643939,-500.0,0.00016438,2]
[359165954,1745760643948,-525.92327894,0.00016438,2]
[359165955,1745760643957,-500.0,0.00016438,2]
[359165956,1745760643966,-500.0,0.00016438,2]
[359165957,1745760643975,-500.0,0.00016438,2]
[359165958,1745760643984,-500.0,0.00016438,2]
[359165959,1745760643993,-500.0,0.00016438,2]
[359165960,1745760644002,-500.0,0.00016438,2]
[359165961,1745760644011,-500.9470932,0.00016438,2]
[359165962,1745760644021,-500.0,0.00016438,2]
[359165963,1745760644030,-500.0,0.00016438,2]
[359165964,1745760644039,-500.0,0.00016438,2]
[359165965,1745760644048,-500.0,0.00016438,2]
[359165966,1745760644058,-500.0,0.00016438,2]
[359165967,1745760644067,-500.0,0.00016438,2]
[359165968,1745760644076,-400.0,0.00016438,2]
[359165969,1745760644085,-500.0,0.00016438,2]
[359165970,1745760644094,-500.0,0.00016438,2]
[359165971,1745760644104,-500.0,0.00016438,2]
[359165972,1745760644113,-500.0,0.00016438,2]
[359165973,1745760644122,-500.0,0.00016438,2]
[359165974,1745760644131,-151.0,0.00016438,2]
[359165975,1745760644140,-151.0,0.00016438,2]
[359165976,1745760644149,-500.0,0.00016438,2]
[359165977,1745760644159,-500.0,0.00016438,2]
[359165978,1745760644168,-500.0,0.00016438,2]
[359165979,1745760644178,-500.0,0.00016438,2]
[359165980,1745760644187,-500.0,0.00016438,2]
[359165981,1745760644197,-500.0,0.00016438,2]
[359165982,1745760644206,-400.0,0.00016438,2]
[359165983,1745760644215,-500.0,0.00016438,2]
[359165984,1745760644225,-338.88839706,0.00016438,2]
[359165985,1745760644234,-500.0,0.00016438,2]
[359165986,1745760644244,-514.36108677,0.00016438,2]
[359165987,1745760644253,-500.0,0.00016438,2]
[359165988,1745760644262,-500.0,0.00016438,2]
[359165989,1745760644271,-158.283503,0.00016438,2]
[359165990,1745760644280,-500.0,0.00016438,2]
[359165991,1745760644290,-500.0,0.00016438,2]
[359165992,1745760644299,-500.0,0.00016438,2]
[359165993,1745760644309,-500.0,0.00016438,2]
[359165994,1745760644318,-400.0,0.00016438,2]
[359165995,1745760644328,-500.0,0.00016438,2]
[359165996,1745760644343,-464.02048899,0.00016438,2]
[359165997,1745760644351,-400.0,0.00016438,2]
[359165998,1745760644361,-692.095706,0.00016438,2]
[359165999,1745760644370,-692.095706,0.00016438,2]
[359166000,1745760644380,-692.095706,0.00016438,2]
[359166001,1745760644389,-500.0,0.00016438,2]
[359166002,1745760644399,-692.095706,0.00016438,2]
[359166003,1745760644505,-692.095706,0.00016438,2]
[359166004,1745760644527,-692.095706,0.00016438,2]
[359166005,1745760644536,-400.0,0.00016438,2]
[359166006,1745760644546,-312.97084177,0.00016438,2]
[359166007,1745760644555,-500.9594006,0.00016438,2]
[359166008,1745760644564,-151.0,0.00016438,2]
[359166009,1745760644573,-500.14583226,0.00016438,2]
[359166010,1745760644582,-151.0,0.00016438,2]
[359166011,1745760644591,-151.0,0.00016438,2]
[359166012,1745760644600,-500.0,0.00016438,2]
[359166013,1745760644609,-500.0,0.00016438,2]
[359166014,1745760644618,-501.16914966,0.00016438,2]
[359166015,1745760644627,-500.0,0.00016438,2]
[359166016,1745760644636,-500.0,0.00016438,2]
[359166017,1745760644647,-500.0,0.00016438,2]
[359166018,1745760644655,-500.59206856,0.00016438,2]
[359166019,1745760644665,-500.43082469,0.00016438,2]
[359166020,1745760644674,-500.0,0.00016438,2]
[359166021,1745760644683,-500.0,0.00016438,2]
[359166022,1745760644692,-539.1652926,0.00016438,2]
[359166023,1745760644702,-151.0,0.00016438,2]
[359166024,1745760644711,-169.110681,0.00016438,2]
[359166025,1745760644719,-151.0,0.00016438,2]
[359166026,1745760644729,-151.0,0.00016438,2]
[359166027,1745760644738,-500.0,0.00016438,2]
[359166028,1745760644747,-151.0,0.00016438,2]
[359166029,1745760644757,-151.0,0.00016438,2]
[359166030,1745760644766,-151.0,0.00016438,2]
[359166031,1745760644775,-151.0,0.00016438,2]
[359166032,1745760644784,-151.0,0.00016438,2]
[359166033,1745760644794,-400.0,0.00016438,2]
[359166034,1745760644803,-151.0,0.00016438,2]
[359166035,1745760644812,-151.0,0.00016438,2]
[359166036,1745760644821,-151.0,0.00016438,2]
[359166037,1745760644831,-151.0,0.00016438,2]
[359166038,1745760644840,-151.0,0.00016438,2]
[359166039,1745760644849,-151.0,0.00016438,2]
[359166040,1745760644858,-151.0,0.00016438,2]
[359166041,1745760644868,-207.299924,0.00016438,2]
[359166042,1745760644877,-500.0,0.00016438,2]
[359166043,1745760644887,-151.0,0.00016438,2]
[359166044,1745760644896,-151.0,0.00016438,2]
[359166045,1745760644906,-501.81760067,0.00016438,2]
[359166046,1745760644915,-151.0,0.00016438,2]
[359166047,1745760644924,-500.0,0.00016438,2]
[359166048,1745760644934,-500.0,0.00016438,2]
[359166049,1745760644944,-500.0,0.00016438,2]
[359166050,1745760644953,-500.0,0.00016438,2]
[359166051,1745760644962,-151.0,0.00016438,2]
[359166052,1745760644972,-151.0,0.00016438,2]
[359166053,1745760644981,-151.0,0.00016438,2]
[359166054,1745760644991,-500.0,0.00016438,2]
[359166055,1745760645000,-500.0,0.00016438,2]
[359166056,1745760645009,-400.0,0.00016438,2]
[359166057,1745760645019,-279.79951101,0.00016438,2]
[359166058,1745760645028,-500.0,0.00016438,2]
[359166059,1745760645038,-500.0,0.00016438,2]
[359166060,1745760645047,-500.0,0.00016438,2]
[359166061,1745760645056,-500.0,0.00016438,2]
[359166062,1745760645066,-500.0,0.00016438,2]
[359166063,1745760645075,-500.0,0.00016438,2]
[359166064,1745760645085,-500.0,0.00016438,2]
[359166065,1745760645094,-500.0,0.00016438,2]
[359166066,1745760645104,-500.0,0.00016438,2]
[359166067,1745760645113,-523.60510386,0.00016438,2]
[359166068,1745760645123,-151.0,0.00016438,2]
[359166069,1745760645132,-151.0,0.00016438,2]
[359166070,1745760645141,-500.0,0.00016438,2]
[359166071,1745760645151,-151.0,0.00016438,2]
[359166072,1745760645160,-151.0,0.00016438,2]
[359166073,1745760645170,-500.0,0.00016438,2]
[359166074,1745760645179,-500.0,0.00016438,2]
[359166075,1745760645188,-151.0,0.00016438,2]
[359166076,1745760645198,-151.0,0.00016463,2]
[359166077,1745760645208,-151.0,0.00016463,2]
[359166078,1745760645217,-261.884284,0.00016472,2]
[359166079,1745760645227,-261.884284,0.00016472,2]
[359166080,1745760645236,-3604.27,0.00016472,2]
[359166081,1745760645247,-262.411177,0.00016472,2]
[359166082,1745760645257,-151.0,0.00016472,2]
[359166083,1745760645266,-500.0,0.00016473,2]
[359166084,1745760645276,-500.0,0.00016473,2]
[359166085,1745760645285,-502.98163376,0.00016473,2]
[359166086,1745760645294,-500.0,0.00016473,2]
[359166087,1745760645304,-365.20452727,0.00016473,2]
[359166088,1745760645313,-500.0,0.00016473,2]
[359166090,1745760645323,-500.67085669,0.00016473,2]
[359166091,1745760645333,-500.0,0.00016473,2]
[359166093,1745760645344,-500.0,0.00016473,2]
[359166094,1745760645353,-500.0,0.00016473,2]
[359166095,1745760645363,-500.0,0.00016473,2]
[359166096,1745760645372,-500.0,0.00016473,2]
[359166097,1745760645382,-621.36475532,0.00016473,2]
[359166098,1745760645392,-500.0,0.00016473,2]
[359166099,1745760645401,-500.0,0.00016473,2]
[359166100,1745760645411,-500.0,0.00016473,2]
[359166101,1745760645421,-500.0,0.00016473,2]
[359166102,1745760645430,-500.0,0.00016473,2]
[359166103,1745760645440,-500.0,0.00016473,2]
[359166104,1745760645449,-500.0,0.00016473,2]
[359166105,1745760645459,-501.05854735,0.00016473,2]
[359166106,1745760645468,-215.64233536,0.00016473,2]
[359166107,1745760645477,-212.38732802,0.00016473,2]
[359166108,1745760645487,-500.0,0.00016473,2]
[359166110,1745760645496,-500.0,0.00016473,2]
[359166112,1745760645506,-500.0,0.00016473,2]
[359166114,1745760645515,-500.0,0.00016473,2]
[359166116,1745760645525,-500.0,0.00016473,2]
[359166117,1745760645539,-500.0,0.00016473,2]
[359166118,1745760645548,-500.0,0.00016473,2]
[359166119,1745760645557,-589.29419478,0.00016473,2]
[359166120,1745760645566,-500.0,0.00016473,2]
[359166121,1745760645575,-234.96330496,0.00016473,2]
[359166122,1745760645585,-500.0,0.00016473,2]
[359166123,1745760645594,-300.46712725,0.00016473,2]
[359166124,1745760645604,-500.0,0.00016473,2]
[359166125,1745760645613,-500.0,0.00016473,2]
[359166126,1745760645623,-500.0,0.00016473,2]
[359166127,1745760645633,-156.99573662,0.00016473,2]
[359166128,1745760645642,-500.0,0.00016473,2]
[359166129,1745760645651,-500.0,0.00016473,2]
[359166130,1745760645660,-151.0,0.00016473,2]
[359166131,1745760645670,-692.095706,0.00016473,2]
[359166132,1745760645679,-692.095706,0.00016473,2]
[359166133,1745760645688,-151.0,0.00016473,2]
[359166134,1745760645698,-1302.7,0.00016711,2]
[359166135,1745760645707,-500.0,0.00016711,2]
[359166136,1745760645717,-3604.27,0.00016711,2]
[359166137,1745760645726,-180.89128291,0.00016712,2]
[359166138,1745760645735,-226.32817536,0.00016712,2]
[359166139,1745760645747,-212.21222919,0.00016712,2]
[359166140,1745760645760,-400.0,0.00016712,2]
[359166141,1745760645773,-400.0,0.00016712,2]
[359166142,1745760645786,-400.0,0.00016712,2]
[359166143,1745760645799,-242.23163187,0.00016712,2]
[359166144,1745760645809,-250.04965159,0.00016712,2]
[359166145,1745760645820,-168.13950214,0.00016712,2]
[359166146,1745760645833,-151.0,0.00016712,2]
[359166147,1745760645844,-228.03630897,0.00016712,2]
[359166148,1745760645856,-904.123676,0.00016712,2]
[359166149,1745760645868,-400.0,0.00016712,2]
[359166150,1745760645880,-227.0910974,0.00016712,2]
[359166151,1745760645894,-241.99508724,0.00016712,2]
[359166152,1745760645906,-232.93785807,0.00016712,2]
[359166153,1745760645919,-400.0,0.00016712,2]
[359166154,1745760645931,-281.59,0.00016712,2]
[359166155,1745760645944,-326.01,0.00016712,2]
[359166156,1745760645956,-459.21,0.00016712,2]
[359166157,1745760645967,-156.591831,0.00016712,2]
[359166158,1745760645979,-400.0,0.00016712,2]
[359166159,1745760645991,-400.0,0.00016712,2]
[359166160,1745760646002,-500.0,0.00016712,2]
[359166161,1745760646015,-288.67,0.00016986,2]
[359166162,1745760646029,-239.95,0.00016986,2]
[359166164,1745760646041,-400.0,0.00016986,2]
[359166165,1745760646054,-400.0,0.00016986,2]
[359166166,1745760646065,-400.0,0.00016986,2]
[359166167,1745760646075,-400.0,0.00016986,2]
[359166168,1745760646084,-400.0,0.00016986,2]
[359166169,1745760646096,-151.0,0.00017119,2]
[359166170,1745760646106,-151.0,0.00017119,2]
[359166171,1745760646118,-151.0,0.00017119,2]
[359166172,1745760646130,-227.09410596,0.00017169,2]
[359166173,1745760646143,-400.0,0.0001726,2]
[359166174,1745760646156,-400.0,0.0001726,2]
[359166175,1745760646167,-400.0,0.0001726,2]
[359166176,1745760646181,-400.0,0.0001726,2]
[359166177,1745760646193,-400.0,0.0001726,2]
[359166178,1745760646206,-157.761629,0.00017513,2]
[359166179,1745760646219,-157.761629,0.00017513,2]
[359166180,1745760646229,-151.0,0.00017513,2]
[359166181,1745760646240,-151.0,0.00017513,2]
[359166182,1745760646250,-261.884284,0.00017513,2]
[359166183,1745760646260,-261.884284,0.00017513,2]
[359166184,1745760646271,-1302.7,0.00017522,2]
[359166185,1745760646283,-500.25520105,0.00017522,2]
[359166186,1745760646296,-3604.27,0.00017522,2]
[359166187,1745760646308,-3604.27,0.00017522,2]
[359166188,1745760646320,-252.893988,0.00017522,2]
[359166189,1745760646331,-163.765784,0.00017523,2]
[359166190,1745760646343,-1302.7,0.00017523,2]
[359166191,1745760646355,-1302.7,0.00017523,2]
[359166192,1745760646366,-1302.7,0.00017523,2]
[359166193,1745760646380,-1302.7,0.00017523,2]
[359166194,1745760646392,-157.761629,0.00017523,2]
[359166195,1745760646404,-157.761629,0.00017523,2]
[359166196,1745760646415,-500.0,0.00017523,2]
[359166197,1745760646426,-500.0,0.00017523,2]
[359166198,1745760646437,-500.0,0.00017523,2]
[359166199,1745760646448,-500.0,0.00017523,2]
[359166200,1745760646459,-500.0,0.00017523,2]
[359166201,1745760646471,-500.0,0.00017523,2]
[359166202,1745760646482,-500.0,0.00017523,2]
[359166203,1745760646493,-500.0,0.00017523,2]
[359166204,1745760646504,-500.0,0.00017523,2]
[359166205,1745760646515,-500.0,0.00017523,2]
[359166206,1745760646527,-500.0,0.00017523,2]
[359166207,1745760646538,-500.0,0.00017523,2]
[359166208,1745760646548,-500.0,0.00017523,2]
[359166209,1745760646559,-151.0,0.00017523,2]
[359166210,1745760646570,-151.0,0.00017523,2]
[359166211,1745760646580,-194.173447,0.00017523,2]
[359166212,1745760646591,-151.0,0.00017523,2]
[359166213,1745760646603,-151.0,0.00017523,2]
[359166214,1745760646613,-251.552708,0.00017523,2]
[359166215,1745760646624,-904.123676,0.00017523,2]
[359166216,1745760646635,-904.123676,0.00017523,2]
[359166217,1745760646647,-261.884284,0.00017523,2]
[359166218,1745760646658,-261.884284,0.00017523,2]
[359166219,1745760646669,-3604.27,0.00017523,2]
[359166220,1745760646680,-3604.27,0.00017523,2]
[359166221,1745760646691,-3604.27,0.00017523,2]
[359166222,1745760646703,-3604.27,0.00017523,2]
[359166223,1745760646714,-3604.27,0.00017523,2]
[359166224,1745760646725,-3604.38919826,0.00017523,2]
[359166225,1745760646736,-692.095706,0.00017523,2]
[359166226,1745760646747,-692.095706,0.00017523,2]
[359166227,1745760646757,-151.0,0.00017523,2]
[359166228,1745760646768,-151.0,0.00017524,2]
[359166229,1745760646779,-151.0,0.00017524,2]
[359166230,1745760646789,-151.0,0.00017524,2]
[359166231,1745760646800,-154.421222,0.00017524,2]
[359166232,1745760646811,-151.0,0.00017524,2]
[359166233,1745760646823,-151.0,0.00017524,2]
[359166234,1745760646835,-151.0,0.00017524,2]
[359166235,1745760646845,-157.761629,0.00017524,2]
[359166236,1745760646855,-157.761629,0.00017524,2]
[359166237,1745760646866,-151.0,0.00017524,2]
[359166238,1745760646877,-151.0,0.00017524,2]
[359166239,1745760646888,-206.531056,0.00017524,2]
[359166240,1745760646902,-151.0,0.00017524,2]
[359166241,1745760646912,-904.123676,0.00017524,2]
[359166242,1745760646923,-904.123676,0.00017524,2]
[359166243,1745760646935,-300.0,0.00017534,2]
[359166244,1745760646947,-400.0,0.00017534,2]
[359166245,1745760646958,-400.0,0.00017534,2]
[359166246,1745760646969,-400.0,0.00017534,2]
[359166247,1745760646980,-523.18403846,0.00017534,2]
[359166248,1745760646990,-300.0,0.00017546,2]
[359166249,1745760647001,-500.0,0.00017573,2]
[359166250,1745760647012,-731.0,0.00017633,2]
[359166251,1745760647022,-500.0,0.00017673,2]
[359166252,1745760647034,-500.0,0.00017673,2]
[359166253,1745760647044,-500.01548081,0.00017673,2]
[359166254,1745760647055,-501.28727635,0.00017673,2]
[359166255,1745760647065,-500.0,0.00017673,2]
[359166256,1745760647076,-501.90240611,0.00017673,2]
[359166257,1745760647087,-261.884284,0.00017673,2]
[359166258,1745760647098,-261.884274,0.00017673,2]
[359166259,1745760647109,-1302.7,0.00017698,2]
[359166260,1745760647120,-1302.7,0.00017699,2]
[359166261,1745760647131,-1302.7,0.00017699,2]
[359166262,1745760647144,-1302.7,0.00017699,2]
[359166263,1745760647155,-1302.7,0.00017699,2]
[359166264,1745760647166,-1302.7,0.00017699,2]
[359166265,1745760647178,-157.761629,0.00017699,2]
[359166266,1745760647189,-151.0,0.00017699,2]
[359166267,1745760647201,-157.761629,0.00017699,2]
[359166268,1745760647214,-239.88739042,0.00017699,2]
[359166269,1745760647225,-151.0,0.00017699,2]
[359166270,1745760647236,-151.0,0.00017699,2]
[359166271,1745760647398,-151.0,0.00017699,2]
[359166272,1745760647410,-904.123676,0.00017699,2]
[359166273,1745760647420,-904.123676,0.00017699,2]
[359166274,1745760647429,-15323.75971672,0.000177,2]
[359166275,1745760647547,-29724.41912535,0.000177,2]
[359166276,1745760647622,-500.0,0.00016051,2]
[359166277,1745760647631,-359.81010597,0.000177,2]
[359166278,1745760647655,-17046.20127327,0.000177,2]
[359166279,1745760647692,-236.75739041,0.00016338,2]
[359166280,1745760647701,-151.0,0.00016438,2]
[359166281,1745760647710,-151.0,0.00016438,2]
[359166282,1745760647719,-404.98520209,0.000177,2]
[359166288,1745760704459,3000.0,0.00025,30]
[359166292,1745760821414,506.5297,0.000202,120]
[359166293,1745760821749,506.5297,0.000232,120]
[359166294,1745760834154,518.37,0.000232,120]
[359166295,1745760834632,518.37,0.000235,120]
[359166296,1745760835129,518.37,0.000237,120]
[359166297,1745760835270,518.37,0.000239,120]
[359166298,1745760835564,518.37,0.000242,120]
[359166299,1745760835890,518.37,0.000244,120]
[359166300,1745760836247,518.37,0.000246,120]
[359166301,1745760836557,518.37,0.000249,120]
[359166303,1745760952277,151.0,0.00023,120]
[359166345,1745761831881,-6023.53958407,0.00014,2]
[359166347,1745761831891,-1000.0,0.00014233,2]
[359166348,1745761831901,-250.0,0.00014333,2]
[359166349,1745761831911,-1341.97133815,0.00015943,2]
[359166350,1745761831921,-300.0,0.00016042,2]
[359166351,1745761831931,-274.0,0.00016042,2]
[359166352,1745761831941,-300.0,0.00016042,2]
[359166353,1745761831952,-300.0,0.00016042,2]
[359166354,1745761831963,-1200.0,0.00016042,2]
[359166355,1745761831974,-500.0,0.00016042,2]
[359166356,1745761831984,-21929.78486968,0.00016043,2]
[359166357,1745761831997,-263.07917187,0.00016043,2]
[359166358,1745761832009,-606.84252089,0.00016043,2]
[359166360,1745761832050,-27200.29343756,0.00016043,2]
[359166362,1745761832060,-500.0,0.00016043,2]
[359166364,1745761832071,-386.69938054,0.00016043,2]
[359166365,1745761832082,-500.0,0.00016043,2]
[359166368,1745761832093,-500.0,0.00016043,2]
[359166372,1745761832103,-500.0,0.00016043,2]
[359166376,1745761832114,-398.31554964,0.00016043,2]
[359166380,1745761832124,-500.0,0.00016043,2]
[359166384,1745761832134,-500.0,0.00016043,2]
[359166388,1745761832144,-500.0,0.00016043,2]
[359166392,1745761832155,-500.0,0.00016043,2]
[359166396,1745761832165,-500.0,0.00016043,2]
[359166401,1745761832176,-500.0,0.00016043,2]
[359166404,1745761832185,-500.0,0.00016043,2]
[359166407,1745761832195,-500.0,0.00016043,2]
[359166410,1745761832205,-500.0,0.00016043,2]
[359166412,1745761832215,-500.0,0.00016043,2]
[359166414,1745761832226,-500.0,0.00016043,2]
[359166416,1745761832236,-500.0,0.00016043,2]
[359166418,1745761832246,-500.0,0.00016043,2]
[359166420,1745761832256,-500.0,0.00016043,2]
[359166422,1745761832267,-500.0,0.00016043,2]
[359166424,1745761832277,-600.0,0.00016043,2]
[359166426,1745761832287,-500.0,0.00016043,2]
[359166428,1745761832298,-500.0,0.00016043,2]